[Event "SVK-ch Open 2018"]
[Site "Banska Stiavnica"]
[Date "2018.07.08"]
[Round "2"]
[White "Panko, Radoslav"]
[Black "Polyik, Peter"]
[Result "1/2-1/2"]
[ECO "A06"]
[WhiteElo "2049"]
[BlackElo "2311"]
[Annotator "NA"]
[PlyCount "81"]
[EventDate "2018.07.07"]
[EventType "swiss"]
[EventCountry "SVK"]
[SourceTitle "playchess.com"]
[Source "ChessBase"]
[SourceQuality "1"]
[TimeControl "40/5400+30:1800+30"]

1. Nf3 {[%emt 0:00:00]} d5 {[%emt 0:00:00]} 2. e3 {[%emt 0:00:07]} Nf6 {[%emt 0:00:17]} 3. b3 {[%emt 0:01:27]} Bf5 {[%emt 0:03:42]} 4. Bb2 {[%emt 0:01:18]} e6 {[%emt 0:00:42]} 5. d4 {[%emt 0:02:42]} Nbd7 {[%emt 0:02:03]} 6. Bd3 {[%emt 0:02:56]} Bg6 {[%emt 0:01:46]} 7. O-O {[%emt 0:10:44]} Bd6 {[%emt 0:11:53]} 8. Nbd2 {[%emt 0:02:12]} Ne4 {[%emt 0:07:52]} 9. Ne5 {[%emt 0:05:52]} f5 {[%emt 0:12:05]} 10. f4 {[%emt 0:04:50]} Ndf6 {[%emt 0:01:03]} 11. Nxe4 {[%emt 0:02:26]} dxe4 {[%emt 0:07:17]} 12. Bb5+ {[%emt 0:05:25]} c6 {[%emt 0:00:18]} 13. Be2 $11 {[%emt 0:12:33]} O-O {[%emt 0:04:33]} 14. Re1 {[%emt 0:07:58]} Qe8 {[%emt 0:01:07]} 15. Nc4 {[%emt 0:01:58]} Be7 {[%emt 0:03:02]} 16. Ba3 {[%emt 0:00:49]} Bxa3 {[%emt 0:03:42]} 17. Nxa3 {[%emt 0:02:22]} Bh5 {[%emt 0:00:52]} 18. Nc4 {[%emt 0:02:13]} Bxe2 {[%emt 0:01:14]} 19. Qxe2 {[%emt 0:00:05]} Qe7 {[%emt 0:17:27]} 20. Ne5 {[%emt 0:01:10]} Nd5 {[%emt 0:02:54]} 21. c4 {[%emt 0:00:25]} Nf6 {[%emt 0:00:04]} 22. a3 {[%emt 0:02:49]} Rad8 {[%emt 0:02:47]} 23. Qc2 {[%emt 0:01:37]} Nd7 {[%emt 0:01:27]} 24. Nxd7 {[%emt 0:04:48]} Rxd7 {[%emt 0:00:20]} 25. c5 {[%emt 0:00:20]} g5 {[%emt 0:00:24]} 26. Qf2 {[%emt 0:00:15]} Kh8 {[%emt 0:01:21]} 27. Kh1 {[%emt 0:01:40]} Qf6 {[%emt 0:05:06]} 28. g3 {[%emt 0:04:45]} Rg7 {[%emt 0:00:18]} 29. Rg1 {[%emt 0:01:14]} h5 {[%emt 0:02:12]} 30. Rg2 {[%emt 0:02:10]} g4 {[%emt 0:01:24]} 31. h4 {[%emt 0:03:17]} gxh3 {[%emt 0:00:30]} 32. Rh2 {[%emt 0:00:08]} Rfg8 {[%emt 0:00:50]} 33. Rg1 {[%emt 0:00:49]} Rh7 {[%emt 0:00:50]} 34. Rxh3 {[%emt 0:00:16]} Kg7 {[%emt 0:01:58]} 35. Qe2 {[%emt 0:06:58]} Kf8 {[%emt 0:00:55]} 36. Rg2 {[%emt 0:01:12]} Qg6 {[%emt 0:01:38]} 37. Kh2 {[%emt 0:00:59]} Rgh8 {[%emt 0:00:23]} 38. Rh4 {[%emt 0:00:03]} Qf6 {[%emt 0:00:27]} 39. b4 {[%emt 0:01:45]} a6 {[%emt 0:01:14]} 40. Rh3 {[%emt 0:02:52]} Kf7 {[%emt 0:00:25]} 41. a4 {[%emt 0:30:28]} 1/2-1/2

[Event "SVK-ch Open 2018"]
[Site "Banska Stiavnica"]
[Date "2018.07.08"]
[Round "2"]
[White "Bednar, Jan"]
[Black "Ruckschloss, Karol"]
[Result "0-1"]
[ECO "A25"]
[WhiteElo "2010"]
[BlackElo "2245"]
[Annotator "NA"]
[PlyCount "86"]
[EventDate "2018.07.07"]
[EventType "swiss"]
[EventCountry "SVK"]
[SourceTitle "playchess.com"]
[Source "ChessBase"]
[SourceQuality "1"]
[TimeControl "40/5400+30:1800+30"]

1. c4 {[%emt 0:00:41]} e5 {[%emt 0:00:00]} 2. Nc3 {[%emt 0:00:12]} Nc6 {[%emt 0:00:00]} 3. g3 {[%emt 0:00:14]} g6 {[%emt 0:00:04]} 4. Bg2 {[%emt 0:00:10]} Bg7 {[%emt 0:00:02]} 5. Nf3 {[%emt 0:00:49]} f5 {[%emt 0:00:43]} 6. d3 {[%emt 0:00:21]} Nf6 {[%emt 0:00:11]} 7. Bg5 {[%emt 0:03:47] A26: English Opening vs King's Indian with ...Nc6 and d3} (7. O-O O-O 8. Rb1 a5 9. a3 d6 10. b4 axb4 11. axb4 f4 12. b5 Ne7 13. c5 Kh8 14. Bb2 Bg4 15. b6 Bxf3 16. bxc7 Qd7 17. Bxf3 dxc5 18. Bxb7 Rac8 19. Bg2 fxg3 20. hxg3 Rxc7 {0-1 (36) Grigoriants,S (2603)-Bacrot,E (2697) Berlin 2015}) 7... h6 {[%emt 0:00:18]} 8. Bxf6 {[%emt 0:00:04]} Bxf6 {[%emt 0:00:03]} 9. Qd2 {[%emt 0:01:00]} d6 {[%emt 0:01:11]} 10. h4 {[%emt 0:00:58]} Be6 {[%emt 0:02:01]} 11. Nd5 {[%emt 0:07:45]} Bg7 {[%emt 0:00:10]} 12. e4 $146 {[%emt 0:02:34]} ({Predecessor:} 12. e3 Qd7 13. Ng1 O-O-O 14. Ne2 Kb8 {0-1 (39) Nuding,M (2126)-Muetsch,A (1914) Wiesbaden 2015}) 12... O-O {[%emt 0:02:46]} 13. Ng1 {[%emt 0:12:00]} Nd4 {[%emt 0:03:23]} 14. Ne2 {[%emt 0:02:09]} Nxe2 {[%emt 0:01:22]} 15. Qxe2 {[%emt 0:00:12]} c6 {[%emt 0:00:17]} 16. Nc3 {[%emt 0:03:15]} Qa5 {[%emt 0:05:10]} 17. a3 {[%emt 0:04:36]} Qb6 {[%emt 0:05:10]} 18. h5 {[%emt 0:13:41]} g5 {[%emt 0:00:36]} 19. exf5 {[%emt 0:00:55]} Bxf5 {[%emt 0:00:10]} 20. O-O {[%emt 0:01:05]} Qd4 {[%emt 0:02:43]} 21. Be4 {[%emt 0:02:02]} Bh3 {[%emt 0:04:02]} 22. Rfe1 {[%emt 0:08:17]} Rad8 {[%emt 0:00:39]} 23. Qe3 {[%emt 0:00:30]} Bg4 {[%emt 0:00:56]} 24. Bg6 {[%emt 0:00:27]} Qxe3 $15 {[%emt 0:00:18]} 25. fxe3 {[%emt 0:10:31]} Rf3 {[%emt 0:04:53]} 26. Kg2 {[%emt 0:02:39]} Rdf8 {[%emt 0:04:56]} 27. Re2 {[%emt 0:06:27]} R3f6 {[%emt 0:02:31]} 28. Rd2 {[%emt 0:00:58]} d5 {[%emt 0:01:11]} 29. Re1 {[%emt 0:03:20]} Rd8 {[%emt 0:03:09]} 30. cxd5 {[%emt 0:01:16]} cxd5 {[%emt 0:01:03]} 31. Rf2 {[%emt 0:01:26]} Rxf2+ {[%emt 0:08:08]} 32. Kxf2 {[%emt 0:01:03]} Rc8 {[%emt 0:00:29]} 33. Rc1 {[%emt 0:03:24]} d4 {[%emt 0:05:23]} 34. exd4 {[%emt 0:00:55]} exd4 {[%emt 0:00:14]} 35. Ne2 {[%emt 0:02:15]} Rf8+ {[%emt 0:02:08]} 36. Ke1 {[%emt 0:00:05]} Rf3 {[%emt 0:00:47]} 37. Rc2 {[%emt 0:04:16]} b6 {[%emt 0:01:01]} 38. Be4 {[%emt 0:01:12]} Re3 {[%emt 0:00:12]} 39. Kf2 {[%emt 0:00:04]} Be5 {[%emt 0:00:19]} 40. b4 {[%emt 0:01:34]} Bxh5 {[%emt 0:00:25]} 41. Bd5+ {[%emt 0:01:27]} Kg7 {[%emt 0:00:00]} 42. Nxd4 {[%emt 0:00:45]} Bxd4 {[%emt 0:00:11]} 43. Rc4 {[%emt 0:00:03]} Rxd3+ {[%emt 0:00:13]} 0-1

[Event "SVK-ch Open 2018"]
[Site "Banska Stiavnica"]
[Date "2018.07.08"]
[Round "2"]
[White "Bakalar, Jan"]
[Black "Juhaniak, Lubomir"]
[Result "1-0"]
[ECO "A49"]
[WhiteElo "1998"]
[BlackElo "1732"]
[Annotator "NA"]
[PlyCount "123"]
[EventDate "2018.07.07"]
[EventType "swiss"]
[EventCountry "SVK"]
[SourceTitle "playchess.com"]
[Source "ChessBase"]
[SourceQuality "1"]
[TimeControl "40/5400+30:1800+30"]

1. d4 {[%emt 0:00:44]} Nf6 {[%emt 0:00:00]} 2. Nf3 {[%emt 0:00:15]} g6 {[%emt 0:01:01]} 3. g3 {[%emt 0:00:57]} b6 {[%emt 0:01:33]} 4. Bg2 {[%emt 0:00:09]} Bb7 {[%emt 0:00:04]} 5. O-O {[%emt 0:00:08]} Bg7 {[%emt 0:00:51]} 6. c4 {[%emt 0:03:07]} O-O {[%emt 0:00:45]} 7. Re1 {[%emt 0:01:17]} d5 {[%emt 0:04:09]} 8. Ne5 {[%emt 0:06:13]} Nfd7 {[%emt 0:05:59]} 9. Nxd7 $11 {[%emt 0:09:59]} Qxd7 {[%emt 0:00:31]} 10. e3 {[%emt 0:00:06]} e6 {[%emt 0:03:17]} 11. Nc3 {[%emt 0:01:42]} c6 {[%emt 0:02:10]} 12. cxd5 {[%emt 0:00:24]} cxd5 {[%emt 0:01:12]} 13. h4 {[%emt 0:04:03]} f5 {[%emt 0:07:22]} 14. f4 {[%emt 0:02:11]} h5 {[%emt 0:07:23]} 15. Bf3 {[%emt 0:05:47]} Qf7 {[%emt 0:03:04]} 16. a4 {[%emt 0:02:07]} a6 {[%emt 0:05:39]} 17. Bd2 {[%emt 0:03:42]} Nd7 {[%emt 0:04:21]} 18. Na2 {[%emt 0:01:03]} Rfc8 19. Bb4 Bf8 {[%emt 0:04:37]} 20. Qd2 {[%emt 0:03:26]} Bxb4 {[%emt 0:06:25]} 21. Nxb4 {[%emt 0:02:54]} a5 {[%emt 0:00:33]} 22. Nd3 {[%emt 0:01:43]} Ba6 {[%emt 0:05:04]} 23. Rec1 {[%emt 0:08:04]} Qf8 {[%emt 0:03:02]} 24. Nf2 {[%emt 0:00:34]} Rxc1+ {[%emt 0:00:11]} 25. Rxc1 {[%emt 0:00:58]} Rc8 {[%emt 0:03:49]} 26. Nh3 {[%emt 0:00:06]} Rxc1+ {[%emt 0:00:10]} 27. Qxc1 {[%emt 0:01:22]} Qc8 {[%emt 0:00:06]} 28. Qxc8+ {[%emt 0:00:19]} Bxc8 {[%emt 0:02:31]} 29. Ng5 {[%emt 0:00:35]} Nf8 30. Be2 {[%emt 0:00:52]} Bd7 {[%emt 0:01:34]} 31. b3 {[%emt 0:01:05]} Kg7 32. Kf2 Nh7 {[%emt 0:03:16]} 33. Kf3 {[%emt 0:04:04]} Nf8 {[%emt 0:04:58]} 34. Bd3 {[%emt 0:03:13]} Bc6 {[%emt 0:01:33]} 35. Ke2 {[%emt 0:02:04]} Kf6 {[%emt 0:00:36]} 36. Nf3 {[%emt 0:00:38]} Nd7 {[%emt 0:01:18]} 37. Ne5 {[%emt 0:03:03]} Nb8 {[%emt 0:03:59]} 38. Kd2 {[%emt 0:02:44]} Be8 {[%emt 0:01:49]} 39. Kc3 {[%emt 0:03:20]} Kg7 {[%emt 0:05:21]} 40. Kb2 {[%emt 0:04:23]} Nc6 {[%emt 0:02:57]} 41. Nf3 {[%emt 0:36:50]} Nb4 {[%emt 0:31:24]} 42. Be2 {[%emt 0:01:51]} Kf6 {[%emt 0:01:25]} 43. Kc3 {[%emt 0:00:18]} Na2+ {[%emt 0:03:29]} 44. Kd2 {[%emt 0:00:45]} Ke7 {[%emt 0:01:38]} 45. Ne5 {[%emt 0:00:32]} Nb4 {[%emt 0:00:00]} 46. Bb5 {[%emt 0:00:00]} Bf7 {[%emt 0:00:00]} 47. Nd7 {[%emt 0:00:00]} Kd6 {[%emt 0:00:00]} 48. Nxb6 {[%emt 0:00:00]} Nc6 {[%emt 0:00:00]} 49. Nc8+ {[%emt 0:00:00]} Kc7 {[%emt 0:00:00]} 50. Bxc6 {[%emt 0:00:00]} Kxc6 {[%emt 0:00:00]} 51. Na7+ {[%emt 0:00:00]} Kb7 {[%emt 0:00:00]} 52. Nb5 {[%emt 0:00:00]} Kc6 {[%emt 0:00:00]} 53. Kc3 {[%emt 0:00:00]} Be8 {[%emt 0:00:00]} 54. Kb2 {[%emt 0:00:00]} Bd7 {[%emt 0:00:00]} 55. Ka3 {[%emt 0:00:00]} Kb6 {[%emt 0:00:00]} 56. Nd6 {[%emt 0:00:00]} Kc6 {[%emt 0:00:00]} 57. Nf7 {[%emt 0:00:00]} Be8 {[%emt 0:00:00]} 58. Ne5+ {[%emt 0:00:00]} Kb6 {[%emt 0:00:00]} 59. Nd3 {[%emt 0:00:00]} Bd7 {[%emt 0:00:00]} 60. Nc5 {[%emt 0:00:00]} Bc8 {[%emt 0:00:00]} 61. b4 {[%emt 0:00:00]} axb4+ {[%emt 0:00:01]} 62. Kxb4 {[%emt 0:00:00]} 1-0

[Event "SVK-ch Open 2018"]
[Site "Banska Stiavnica"]
[Date "2018.07.08"]
[Round "2"]
[White "Chrenko, Kristian"]
[Black "Kramar, Matus"]
[Result "1-0"]
[ECO "B33"]
[WhiteElo "1992"]
[BlackElo "1573"]
[Annotator "NA"]
[PlyCount "71"]
[EventDate "2018.07.07"]
[EventType "swiss"]
[EventCountry "SVK"]
[SourceTitle "playchess.com"]
[Source "ChessBase"]
[SourceQuality "1"]
[TimeControl "40/5400+30:1800+30"]

1. e4 {[%emt 0:00:00]} c5 {[%emt 0:00:00]} 2. Nf3 {[%emt 0:00:00]} Nc6 {[%emt 0:00:03]} 3. d4 {[%emt 0:00:00]} cxd4 {[%emt 0:00:46]} 4. Nxd4 {[%emt 0:00:00]} Nf6 {[%emt 0:01:29]} 5. Nc3 {[%emt 0:01:23]} g6 {[%emt 0:00:21]} 6. Nxc6 {[%emt 0:00:32]} bxc6 {[%emt 0:01:17]} 7. e5 {[%emt 0:00:05]} Ng8 {[%emt 0:00:53]} 8. Bc4 {[%emt 0:06:57]} d5 {[%emt 0:14:01]} 9. exd6 {[%emt 0:06:12]} exd6 {[%emt 0:00:07]} 10. Qf3 $18 {[%emt 0:01:15]} d5 {[%emt 0:04:13]} 11. Bd3 {[%emt 0:09:07]} Bg7 {[%emt 0:03:22]} 12. O-O {[%emt 0:05:39]} Be6 {[%emt 0:02:10]} 13. Re1 {[%emt 0:04:14]} Ne7 {[%emt 0:02:35]} 14. Bg5 {[%emt 0:03:16]} Qd7 {[%emt 0:01:17]} 15. Bf6 {[%emt 0:05:49]} O-O {[%emt 0:02:46]} 16. Bxg7 {[%emt 0:05:38]} Kxg7 {[%emt 0:01:18]} 17. Qf4 {[%emt 0:04:34]} c5 {[%emt 0:17:43]} 18. Rad1 {[%emt 0:01:37]} Nc6 {[%emt 0:02:32]} 19. Bb5 {[%emt 0:01:18]} a6 {[%emt 0:04:00]} 20. Bxc6 {[%emt 0:03:51]} Qxc6 {[%emt 0:01:37]} 21. Qe5+ {[%emt 0:00:15]} Kg8 {[%emt 0:00:37]} 22. Nxd5 {[%emt 0:02:47]} Bxd5 {[%emt 0:03:20]} 23. Qxd5 {[%emt 0:00:08]} Qb5 {[%emt 0:00:34]} 24. b3 {[%emt 0:03:24]} Rad8 {[%emt 0:02:21]} 25. Qe5 {[%emt 0:01:52]} Rde8 {[%emt 0:00:50]} 26. Qf6 {[%emt 0:11:25]} Re2 {[%emt 0:05:05]} 27. c4 {[%emt 0:00:50]} Rxe1+ {[%emt 0:01:47]} 28. Rxe1 {[%emt 0:00:03]} Qa5 {[%emt 0:00:07]} 29. Re2 {[%emt 0:01:43]} Rd8 {[%emt 0:03:12]} 30. h4 {[%emt 0:02:07]} Qc7 {[%emt 0:03:36]} 31. f4 {[%emt 0:00:27]} Qd7 {[%emt 0:01:58]} 32. Kh2 {[%emt 0:01:43]} Qd4 {[%emt 0:06:11]} 33. Re5 {[%emt 0:01:15]} h5 {[%emt 0:02:58]} 34. b4 {[%emt 0:00:42]} cxb4 {[%emt 0:01:17]} 35. Re8+ {[%emt 0:00:06]} Kh7 {[%emt 0:00:10]} 36. Rh8+ {[%emt 0:00:10]} 1-0

[Event "SVK-ch Open 2018"]
[Site "Banska Stiavnica"]
[Date "2018.07.08"]
[Round "2"]
[White "Gyerpal, Adrian"]
[Black "Seres, Bela"]
[Result "0-1"]
[ECO "B27"]
[WhiteElo "1990"]
[BlackElo "2212"]
[Annotator "NA"]
[PlyCount "84"]
[EventDate "2018.07.07"]
[EventType "swiss"]
[EventCountry "SVK"]
[SourceTitle "playchess.com"]
[Source "ChessBase"]
[SourceQuality "1"]
[TimeControl "40/5400+30:1800+30"]

1. e4 {[%emt 0:00:00]} c5 {[%emt 0:00:00]} 2. Nf3 {[%emt 0:00:00]} g6 {[%emt 0:00:00]} 3. d4 {[%emt 0:00:06]} Bg7 {[%emt 0:00:00]} 4. Nc3 {[%emt 0:00:59]} Qa5 {[%emt 0:00:03]} 5. d5 {[%emt 0:00:30] B76: Sicilian Dragon: Yugoslav Attack, 9 g4 and 9 0-0-0} (5. Be2 Nc6 6. Be3 Nf6 7. O-O Ng4 8. Bd2 cxd4 9. Nxd4 Nxd4 10. Bxg4 d6 11. Nd5 Bxg4 12. Bxa5 Bxd1 13. Rfxd1 Rc8 14. Rd2 {1-0 (69) Rasulov,V (2506)-Iskandarov,M (2396) Cesme 2014}) 5... d6 {[%emt 0:01:56]} 6. Be2 {[%emt 0:00:49]} a6 {[%emt 0:02:38]} 7. Bd2 {[%emt 0:05:12]} Bg4 {[%emt 0:01:07]} 8. O-O $146 {[%emt 0:03:39]} ({Predecessor:} 8. a4 Nd7 9. O-O Bxf3 10. Bxf3 Ngf6 11. Be2 O-O 12. Kh1 Rab8 {1-0 (32) Weinstein,R-Filipowicz,A Budva 1963}) 8... Bxf3 {[%emt 0:04:29]} 9. Bxf3 {[%emt 0:01:21]} b5 {[%emt 0:00:14]} 10. a3 {[%emt 0:03:26]} Nd7 {[%emt 0:01:40]} 11. Be2 {[%emt 0:03:29]} Qc7 {[%emt 0:01:53]} 12. Rb1 {[%emt 0:06:04]} Ngf6 {[%emt 0:07:55]} 13. b4 {[%emt 0:07:34]} cxb4 {[%emt 0:02:18]} 14. axb4 {[%emt 0:00:41]} O-O {[%emt 0:00:15]} 15. Bd3 {[%emt 0:05:37]} Nb6 {[%emt 0:01:07]} 16. Qe2 {[%emt 0:04:13]} Nfd7 {[%emt 0:02:55]} 17. Nd1 {[%emt 0:01:59]} Rfc8 {[%emt 0:01:55]} 18. Ne3 {[%emt 0:03:26]} Ne5 {[%emt 0:00:58]} 19. f4 {[%emt 0:03:34]} Nec4 {[%emt 0:00:35]} 20. Be1 {[%emt 0:02:06]} Nxe3 {[%emt 0:06:40]} 21. Qxe3 {[%emt 0:00:07]} Nc4 {[%emt 0:00:20]} 22. Qe2 $11 {[%emt 0:02:14]} Na3 {[%emt 0:01:22]} 23. Rc1 {[%emt 0:04:51]} Bb2 {[%emt 0:01:34]} 24. Bd2 {[%emt 0:07:12]} Bxc1 {[%emt 0:03:09]} 25. Rxc1 {[%emt 0:00:01]} Nc4 {[%emt 0:00:15]} 26. Bc3 {[%emt 0:02:38]} Ne5 {[%emt 0:00:29]} 27. Bb2 {[%emt 0:02:36]} Nxd3 {[%emt 0:00:34]} 28. cxd3 {[%emt 0:00:20]} Qb6+ {[%emt 0:00:57]} 29. Kh1 {[%emt 0:00:14]} Rxc1+ {[%emt 0:00:49]} 30. Bxc1 {[%emt 0:00:01]} Rc8 {[%emt 0:00:23]} 31. Be3 {[%emt 0:02:02]} Qc7 {[%emt 0:00:20]} 32. h3 {[%emt 0:01:23]} Qc2 {[%emt 0:00:12]} 33. Qg4 {[%emt 0:00:14]} Re8 {[%emt 0:03:10]} 34. Qd7 {[%emt 0:01:21]} Qc8 {[%emt 0:01:54]} 35. Qa7 {[%emt 0:00:27]} f6 {[%emt 0:00:51]} 36. Kh2 {[%emt 0:04:12]} Kf7 {[%emt 0:00:54]} 37. Bb6 {[%emt 0:01:52]} Qc3 {[%emt 0:03:41]} 38. d4 {[%emt 0:01:57]} Qe3 {[%emt 0:02:48]} 39. Qxa6 {[%emt 0:01:57]} Qxe4 {[%emt 0:02:34]} 40. Qxb5 {[%emt 0:01:14]} Qxf4+ {[%emt 0:03:17]} 41. Kh1 {[%emt 0:30:31]} Ra8 {[%emt 0:30:29]} 42. Ba5 {[%emt 0:00:36]} Rc8 {[%emt 0:00:02]} 0-1

[Event "SVK-ch Open 2018"]
[Site "Banska Stiavnica"]
[Date "2018.07.08"]
[Round "2"]
[White "Mandak, Miroslav"]
[Black "Hrdlicka, Martin"]
[Result "1-0"]
[ECO "C79"]
[WhiteElo "1989"]
[BlackElo "1525"]
[Annotator "NA"]
[PlyCount "91"]
[EventDate "2018.07.07"]
[EventType "swiss"]
[EventCountry "SVK"]
[SourceTitle "playchess.com"]
[Source "ChessBase"]
[SourceQuality "1"]
[TimeControl "40/5400+30:1800+30"]

1. e4 {[%emt 0:00:00]} e5 {[%emt 0:00:00]} 2. Nf3 {[%emt 0:00:02]} Nc6 {[%emt 0:00:00]} 3. Bb5 {[%emt 0:00:28]} a6 {[%emt 0:00:00]} 4. Ba4 {[%emt 0:00:09]} Nf6 {[%emt 0:00:29]} 5. O-O {[%emt 0:00:56]} d6 {[%emt 0:00:48]} 6. d3 {[%emt 0:04:39]} b5 {[%emt 0:01:05]} 7. Bb3 {[%emt 0:00:09]} Na5 {[%emt 0:02:10]} 8. Nbd2 {[%emt 0:02:47]} Nxb3 {[%emt 0:00:45]} 9. Nxb3 {[%emt 0:00:19]} Be7 {[%emt 0:04:12]} 10. Re1 {[%emt 0:02:01]} O-O {[%emt 0:00:24]} 11. h3 {[%emt 0:03:00]} c5 {[%emt 0:01:12]} 12. Nbd2 {[%emt 0:04:12]} Bb7 {[%emt 0:02:31]} 13. c4 {[%emt 0:07:22]} Nd7 {[%emt 0:07:45]} 14. b3 {[%emt 0:17:51]} f5 {[%emt 0:06:39]} 15. exf5 {[%emt 0:09:18]} Rxf5 {[%emt 0:00:17]} 16. Ne4 {[%emt 0:02:02]} Rf8 {[%emt 0:05:07]} 17. Nfg5 {[%emt 0:04:44]} Bxg5 {[%emt 0:01:50]} 18. Bxg5 {[%emt 0:01:49]} Nf6 $16 {[%emt 0:01:59]} 19. f3 {[%emt 0:06:08]} Qc7 {[%emt 0:03:16]} 20. Rc1 {[%emt 0:02:06]} Nxe4 {[%emt 0:00:38]} 21. dxe4 {[%emt 0:01:01]} h6 {[%emt 0:11:48]} 22. Bh4 {[%emt 0:04:20]} Rf4 {[%emt 0:03:09]} 23. Bg3 {[%emt 0:02:08]} Rf6 {[%emt 0:00:42]} 24. Qe2 {[%emt 0:01:31]} Rg6 {[%emt 0:02:50]} 25. Bh4 {[%emt 0:03:30]} Qf7 {[%emt 0:02:54]} 26. Qe3 {[%emt 0:06:33]} Bc8 {[%emt 0:02:41]} 27. Kh2 {[%emt 0:01:34]} Be6 {[%emt 0:01:51]} 28. Red1 {[%emt 0:03:38]} Bd7 {[%emt 0:07:10]} 29. Rc2 {[%emt 0:02:38]} Rb8 {[%emt 0:02:23]} 30. cxb5 {[%emt 0:00:55]} axb5 {[%emt 0:01:03]} 31. Rcd2 {[%emt 0:00:23]} Qf8 {[%emt 0:02:31]} 32. Kh1 {[%emt 0:02:47]} c4 {[%emt 0:11:39]} 33. Bf2 {[%emt 0:02:34]} Rc8 {[%emt 0:02:24]} 34. bxc4 {[%emt 0:00:34]} bxc4 {[%emt 0:00:09]} 35. Rc1 {[%emt 0:00:38]} Qf7 {[%emt 0:01:48]} 36. Bg1 {[%emt 0:00:51]} Ra8 {[%emt 0:07:44]} 37. Qc3 {[%emt 0:00:45]} Be6 {[%emt 0:01:47]} 38. Rcd1 {[%emt 0:00:44]} Qf4 {[%emt 0:01:50]} 39. Bh2 {[%emt 0:00:45]} Qg5 {[%emt 0:00:54]} 40. Re2 {[%emt 0:00:59]} Bf7 {[%emt 0:01:00]} 41. Red2 {[%emt 0:06:54]} Kh7 {[%emt 0:06:27]} 42. Qc2 {[%emt 0:00:58]} Rxa2 {[%emt 0:12:44]} 43. Qxa2 {[%emt 0:02:00]} c3 {[%emt 0:00:05]} 44. Rd5 {[%emt 0:00:10]} Qe3 {[%emt 0:05:42]} 45. Qc2 {[%emt 0:02:19]} Bxd5 {[%emt 0:02:35]} 46. exd5 {[%emt 0:00:58]} 1-0

[Event "SVK-ch Open 2018"]
[Site "Banska Stiavnica"]
[Date "2018.07.08"]
[Round "2"]
[White "Pericka, Tomas"]
[Black "Bombek, Peter"]
[Result "0-1"]
[ECO "B13"]
[WhiteElo "1975"]
[BlackElo "2201"]
[Annotator "NA"]
[PlyCount "42"]
[EventDate "2018.07.07"]
[EventType "swiss"]
[EventCountry "SVK"]
[SourceTitle "playchess.com"]
[Source "ChessBase"]
[SourceQuality "1"]
[TimeControl "40/5400+30:1800+30"]

1. e4 {[%emt 0:00:00]} c6 {[%emt 0:00:00]} 2. d4 {[%emt 0:00:00]} d5 {[%emt 0:00:00]} 3. exd5 {[%emt 0:02:03]} cxd5 {[%emt 0:00:05]} 4. c4 {[%emt 0:00:04]} Nf6 {[%emt 0:00:36]} 5. Nc3 {[%emt 0:00:12]} Nc6 {[%emt 0:00:51]} 6. Be3 {[%emt 0:04:08]} g6 {[%emt 0:03:24]} 7. Nf3 {[%emt 0:01:47]} Bg7 {[%emt 0:00:53]} 8. Rc1 {[%emt 0:07:44]} O-O {[%emt 0:03:02]} 9. Qd2 {[%emt 0:10:48]} Ne4 {[%emt 0:05:03]} 10. Nxe4 {[%emt 0:02:50]} dxe4 {[%emt 0:00:12]} 11. d5 {[%emt 0:05:50]} exf3 {[%emt 0:01:27]} 12. dxc6 {[%emt 0:02:24]} Qxd2+ {[%emt 0:02:09]} 13. Bxd2 $17 {[%emt 0:00:55]} bxc6 {[%emt 0:01:06]} 14. b4 {[%emt 0:02:13]} Bf5 {[%emt 0:01:55]} 15. g4 {[%emt 0:02:23]} Be4 {[%emt 0:07:37]} 16. Bc3 {[%emt 0:01:22]} Bh6 {[%emt 0:04:48]} 17. Bd2 {[%emt 0:00:40]} Bg7 {[%emt 0:01:14]} 18. Bc3 {[%emt 0:00:02]} Rfd8 {[%emt 0:05:16]} 19. c5 {[%emt 0:03:42]} Bxc3+ {[%emt 0:13:34]} 20. Rxc3 {[%emt 0:00:02]} Rab8 {[%emt 0:00:26]} 21. a3 {[%emt 0:03:15]} a5 {[%emt 0:02:35]} 0-1

[Event "SVK-ch Open 2018"]
[Site "Banska Stiavnica"]
[Date "2018.07.08"]
[Round "2"]
[White "Gombar, Peter"]
[Black "Kostolansky, Sebastian Lukas"]
[Result "0-1"]
[ECO "A45"]
[WhiteElo "1974"]
[BlackElo "2197"]
[Annotator "NA"]
[PlyCount "48"]
[EventDate "2018.07.07"]
[EventType "swiss"]
[EventCountry "SVK"]
[SourceTitle "playchess.com"]
[Source "ChessBase"]
[SourceQuality "1"]
[TimeControl "40/5400+30:1800+30"]

1. d4 {[%emt 0:00:00]} Nf6 {[%emt 0:00:00]} 2. Bf4 {[%emt 0:00:00]} g6 {[%emt 0:00:15]} 3. Nc3 {[%emt 0:00:01]} Bg7 {[%emt 0:00:09]} 4. e4 {[%emt 0:00:21]} d6 {[%emt 0:00:31]} 5. Qd2 {[%emt 0:00:34]} Nbd7 {[%emt 0:00:37]} 6. Bh6 {[%emt 0:02:06]} O-O {[%emt 0:04:22]} 7. h4 {[%emt 0:02:04]} e5 {[%emt 0:18:12]} 8. d5 {[%emt 0:18:04]} Nc5 {[%emt 0:00:25]} 9. f3 {[%emt 0:00:26]} c6 {[%emt 0:08:52]} 10. Bxg7 {[%emt 0:06:02]} Kxg7 {[%emt 0:00:06]} 11. O-O-O {[%emt 0:00:11]} cxd5 {[%emt 0:04:03]} 12. Nxd5 {[%emt 0:00:41]} Be6 {[%emt 0:04:39]} 13. Nxf6 {[%emt 0:10:59]} Qxf6 {[%emt 0:01:02]} 14. h5 {[%emt 0:00:44]} Bxa2 $14 {[%emt 0:11:08]} 15. hxg6 {[%emt 0:08:42]} Qxg6 {[%emt 0:01:12]} 16. Qxd6 {[%emt 0:08:32]} Nb3+ {[%emt 0:01:59]} 17. cxb3 {[%emt 0:00:14]} Rac8+ {[%emt 0:00:17]} 18. Bc4 {[%emt 0:00:28]} Bxb3 {[%emt 0:00:27]} 19. Qxe5+ {[%emt 0:07:44]} Kg8 {[%emt 0:04:42]} 20. Rd3 {[%emt 0:05:13]} Rxc4+ {[%emt 0:17:11]} 21. Rc3 {[%emt 0:00:21]} Qxg2 {[%emt 0:01:10]} 22. Rxc4 {[%emt 0:01:31]} Rd8 {[%emt 0:00:26]} 23. Qg3+ {[%emt 0:04:21]} Qxg3 {[%emt 0:00:07]} 24. Ne2 {[%emt 0:00:02]} Qg2 {[%emt 0:00:22]} 0-1

[Event "SVK-ch Open 2018"]
[Site "Banska Stiavnica"]
[Date "2018.07.08"]
[Round "2"]
[White "Sandor, Martin"]
[Black "Jozefek, Michal"]
[Result "1/2-1/2"]
[ECO "B67"]
[WhiteElo "1968"]
[BlackElo "2182"]
[Annotator "NA"]
[PlyCount "48"]
[EventDate "2018.07.07"]
[EventType "swiss"]
[EventCountry "SVK"]
[SourceTitle "playchess.com"]
[Source "ChessBase"]
[SourceQuality "1"]
[TimeControl "40/5400+30:1800+30"]

1. e4 {[%emt 0:00:00]} c5 {[%emt 0:00:03]} 2. Nf3 {[%emt 0:00:00]} d6 {[%emt 0:00:05]} 3. d4 {[%emt 0:00:00]} cxd4 {[%emt 0:00:01]} 4. Nxd4 {[%emt 0:00:00]} Nf6 {[%emt 0:00:05]} 5. Nc3 {[%emt 0:00:00]} Nc6 {[%emt 0:00:03]} 6. Bg5 {[%emt 0:00:11]} e6 {[%emt 0:00:06]} 7. Qd2 {[%emt 0:00:11]} a6 {[%emt 0:00:10]} 8. O-O-O {[%emt 0:00:19]} Bd7 {[%emt 0:00:07]} 9. f3 {[%emt 0:00:28]} b5 {[%emt 0:01:53]} 10. Nxc6 {[%emt 0:00:25]} Bxc6 {[%emt 0:00:14]} 11. Ne2 {[%emt 0:00:26]} Be7 {[%emt 0:03:13]} 12. h4 {[%emt 0:00:22]} h6 {[%emt 0:02:32]} 13. Bf4 {[%emt 0:01:03]} e5 {[%emt 0:05:06]} 14. Be3 {[%emt 0:10:51]} Qc7 {[%emt 0:01:54]} 15. Ng3 {[%emt 0:06:51]} Bd7 {[%emt 0:02:43]} 16. Bd3 {[%emt 0:04:21]} Rc8 {[%emt 0:02:04]} 17. Kb1 {[%emt 0:03:03]} d5 {[%emt 0:12:00]} 18. exd5 {[%emt 0:04:06]} Nxd5 {[%emt 0:01:02]} 19. Be4 {[%emt 0:00:59]} Nxe3 {[%emt 0:01:18]} 20. Qxe3 {[%emt 0:00:23]} O-O {[%emt 0:01:19]} 21. Nf5 {[%emt 0:19:03]} Bxf5 {[%emt 0:03:37]} 22. Bxf5 {[%emt 0:00:37]} Rcd8 {[%emt 0:00:18]} 23. Qe4 {[%emt 0:10:43]} Rxd1+ {[%emt 0:00:47]} 24. Rxd1 {[%emt 0:00:08]} Rd8 {[%emt 0:00:10]} 1/2-1/2